bitfinex-derivatives/quotes_BTCF0:USTF0_20250904
["timestamp","ask_amount","ask_price","bid_price","bid_amount"]
[1756995964369,0.07285423,110060.0,110050.0,0.10251]
[1756995964567,0.36275423,110060.0,110050.0,0.52402266]
[1756995965567,0.36275423,110060.0,110050.0,0.52856266]
[1756995965759,0.36275423,110060.0,110050.0,0.10705]
[1756995965956,0.36275423,110060.0,110050.0,0.52856266]
[1756995967060,0.36275423,110060.0,110050.0,0.04985]
[1756995967261,1.41146689,110060.0,110050.0,0.00454]
[1756995967463,0.98995423,110060.0,110050.0,0.00454]
[1756995967663,2.29290689,110060.0,110050.0,0.00454]
[1756995968373,1.41146689,110060.0,110050.0,0.10706232]
[1756995968567,0.72355423,110060.0,110050.0,0.04985]
[1756995968966,0.97355423,110060.0,110050.0,0.04985]
[1756995969176,0.72355423,110060.0,110050.0,0.47136266]
[1756995969673,0.72355423,110060.0,110050.0,0.04985]
[1756995970361,0.36275423,110060.0,110050.0,0.47136266]
[1756995970567,0.36275423,110060.0,110050.0,1.35272266]
[1756995971473,0.36275423,110060.0,110050.0,1.38185544]
[1756995971869,0.33584423,110060.0,110050.0,1.69723695]
[1756995972174,0.36319423,110060.0,110050.0,1.6111153]
[1756995972372,0.36319423,110060.0,110050.0,1.51925165]
[1756995972668,0.36319423,110060.0,110050.0,0.05085]
[1756995972870,0.71667588,110060.0,110050.0,1.34086226]
[1756995973069,0.36319423,110060.0,110050.0,1.26821165]
[1756995973878,0.36319423,110060.0,110050.0,0.38693165]
[1756995974373,0.36319423,110060.0,110050.0,0.38793165]
[1756995974561,1.29430753,110060.0,110050.0,0.00554]
[1756995974767,1.65510753,110060.0,110050.0,0.11910379]
[1756995975268,1.65510753,110060.0,110050.0,0.00454]
[1756995975666,1.65510753,110060.0,110050.0,0.11810379]
[1756995976367,1.65510753,110060.0,110050.0,0.00454]
[1756995977078,0.98094423,110060.0,110050.0,0.00454]
[1756995977378,2.19918588,110060.0,110050.0,0.07559925]
[1756995977568,2.53626753,110060.0,110050.0,0.00454]
[1756995977977,1.86210423,110060.0,110050.0,0.00454]
[1756995978277,2.53626753,110060.0,110050.0,0.00454]
[1756995978669,1.86210423,110060.0,110050.0,0.00454]
[1756995978976,2.53586753,110060.0,110050.0,0.00454]
[1756995981776,2.53586753,110060.0,110050.0,0.07604966]
[1756995982477,1.86170423,110060.0,110050.0,0.07604966]
[1756995982679,2.53574753,110060.0,110050.0,0.07604966]
[1756995983073,2.53570753,110060.0,110050.0,0.07604966]
[1756995983980,2.19862588,110060.0,110050.0,0.07604966]
[1756995984180,1.86154423,110060.0,110050.0,0.07604966]
[1756995984378,2.53570753,110060.0,110050.0,0.07604966]
[1756995985185,2.28570753,110060.0,110050.0,0.00454]
[1756995985384,1.61154423,110060.0,110050.0,0.00454]
[1756995985584,2.28570753,110060.0,110050.0,0.00454]
[1756995985781,0.0356,110050.0,110040.0,0.1136638]
[1756995986083,1.38158053,110050.0,110040.0,1e-08]
[1756995986984,0.04382,110040.0,110030.0,0.00460001]
[1756995987178,2.2697433,110040.0,110030.0,0.00460001]
[1756995987375,2.2687433,110040.0,110030.0,0.00460001]
[1756995987574,2.85582495,110040.0,110030.0,0.00218963]
[1756995987774,1.6367833,110040.0,110030.0,0.00218963]
[1756995987975,2.5177033,110040.0,110030.0,0.00218963]
[1756995988381,2.5177033,110040.0,110030.0,0.00418963]
[1756995988587,2.5177433,110040.0,110030.0,0.00518963]
[1756995989287,0.04156,110030.0,110020.0,0.11356379]
[1756995989482,1.3865233,110030.0,110020.0,0.11356379]
[1756995989682,0.00695,110020.0,110010.0,0.11360379]
[1756995989879,2.2702233,110020.0,110010.0,0.11360379]
[1756995990078,2.2702233,110020.0,110010.0,4e-05]
[1756995991083,2.87882252,110020.0,110010.0,4e-05]
[1756995991391,2.54274087,110020.0,110010.0,4e-05]
[1756995992086,2.89274087,110020.0,110010.0,4e-05]
[1756995992283,2.88274087,110020.0,110010.0,4e-05]
[1756995992482,0.98761757,110020.0,110010.0,4e-05]
[1756995992682,2.88274087,110020.0,110010.0,4e-05]
[1756995992882,2.90274087,110020.0,110010.0,4e-05]
[1756995993084,2.90374087,110020.0,110010.0,4e-05]
[1756995993284,2.54374087,110020.0,110010.0,4e-05]
[1756995993484,2.29146621,110020.0,110010.0,4e-05]
[1756995993684,2.65146621,110020.0,110010.0,4e-05]
[1756995993885,0.03769,110000.0,109990.0,0.07172137]
[1756995994086,1.56945,110000.0,109990.0,0.07082137]
[1756995994282,0.68849,110000.0,109980.0,0.48998379]
[1756995994487,0.68859,110000.0,109980.0,0.79830864]
[1756995994682,0.71605566,110000.0,109990.0,0.02629]
[1756995994892,0.71595566,110000.0,109990.0,0.04191]
[1756995995181,0.72629566,110000.0,109990.0,0.001]
[1756995995382,0.74731414,110000.0,109990.0,0.003]
[1756995995688,1.16920278,110000.0,109990.0,0.003]
[1756995995884,0.74731414,110000.0,109990.0,0.003]
[1756995996085,1.62827414,110000.0,109990.0,0.003]
[1756995996388,1.61793414,110000.0,109990.0,0.04491]
[1756995998086,1.62827414,110000.0,109990.0,0.003]
[1756995999594,2.41096278,110000.0,109990.0,0.003]
[1756996000282,2.72096278,110000.0,109990.0,0.003]
[1756996000483,0.01022,109990.0,109980.0,0.07212237]
[1756996000683,1.17002864,109990.0,109960.0,0.01572]
[1756996000886,1.26888,109980.0,109970.0,0.02584]
[1756996001088,0.70487,109980.0,109970.0,0.04152]
[1756996001292,0.70487,109980.0,109960.0,0.01562]
[1756996001493,0.70497,109980.0,109960.0,0.01562]
[1756996001890,0.02712,109960.0,109950.0,0.4023]
[1756996002092,0.34712,109960.0,109950.0,0.4023]
[1756996002491,0.34612,109960.0,109950.0,0.4023]
[1756996002895,0.29612,109960.0,109950.0,0.4023]
[1756996003193,0.31328,109960.0,109950.0,0.4043]
[1756996003590,0.31328,109960.0,109950.0,0.47651479]
[1756996004407,0.31328,109960.0,109950.0,0.47751479]
[1756996008895,0.29612,109960.0,109950.0,1.23774116]
[1756996009096,0.29612,109960.0,109950.0,1.54774116]
[1756996009497,0.29612,109960.0,109950.0,2.12774116]
[1756996009797,0.0001,109970.0,109950.0,2.21866736]
[1756996009997,0.2901,109970.0,109960.0,1.67680008]
[1756996010200,0.29,109970.0,109960.0,2.35771798]
[1756996010398,0.29,109970.0,109960.0,2.67771798]
[1756996010599,0.29,109970.0,109960.0,3.018656]
[1756996011092,0.29,109970.0,109960.0,2.698656]
[1756996011398,0.291,109970.0,109960.0,2.708656]
[1756996011999,0.001,109970.0,109960.0,2.708656]
[1756996012599,0.271,109970.0,109960.0,2.708656]
[1756996012902,0.27,109970.0,109960.0,2.710656]
[1756996013199,0.0001,109980.0,109970.0,0.02584]
[1756996013399,0.32,109980.0,109970.0,1.40160008]
[1756996013900,0.32,109980.0,109970.0,1.0325381]
[1756996014101,0.34712,109980.0,109970.0,1.37421802]
[1756996014603,0.34712,109980.0,109970.0,1.37521802]
[1756996014990,0.34712,109980.0,109970.0,0.49525802]
[1756996015196,0.34712,109980.0,109970.0,1.37621802]
[1756996015396,0.34712,109980.0,109970.0,1.7954981]
[1756996015799,0.34712,109980.0,109970.0,0.9145381]
[1756996015994,0.34712,109980.0,109970.0,0.13445802]
[1756996016196,0.59712,109980.0,109970.0,0.9244]
[1756996016506,0.95792,109980.0,109970.0,0.9244]
[1756996016800,0.96826,109980.0,109970.0,0.002]
[1756996017307,0.96826,109980.0,109970.0,0.001]
[1756996017498,0.95792,109980.0,109970.0,0.04152]
[1756996017697,0.95992,109980.0,109970.0,0.04152]
[1756996018205,0.96092,109980.0,109970.0,0.04152]
[1756996018806,0.96092,109980.0,109970.0,0.82160008]
[1756996018807,0.35012,109980.0,109970.0,0.82160008]
[1756996019101,0.35012,109980.0,109970.0,1.34160008]
[1756996019306,0.71092,109980.0,109970.0,0.04152]
[1756996019510,0.35012,109980.0,109970.0,0.04152]
[1756996020210,0.96092,109980.0,109960.0,0.37658]
[1756996020513,0.71102,109980.0,109970.0,0.04152]
[1756996020706,0.71092,109980.0,109970.0,0.04152]
[1756996021209,0.71092,109980.0,109960.0,0.89658]
[1756996021504,0.71102,109980.0,109970.0,0.04152]
[1756996021710,0.71092,109980.0,109970.0,0.04152]
[1756996022211,1.38020008,109980.0,109960.0,0.01578]
[1756996022406,0.38792,109970.0,109960.0,0.0001]
[1756996022602,0.70676,109970.0,109950.0,0.96869479]
[1756996022798,0.69802,109970.0,109960.0,0.02584]
[1756996023013,0.69792,109970.0,109960.0,0.04152]
[1756996024002,0.33712,109970.0,109960.0,0.46080008]
[1756996024509,0.33712,109970.0,109960.0,0.04152]
[1756996025815,0.33812,109970.0,109960.0,0.04152]
[1756996026000,1.11820008,109970.0,109950.0,0.96861479]
[1756996026205,1.11830008,109970.0,109950.0,0.96861479]
[1756996026398,0.69902,109970.0,109960.0,0.04152]
[1756996026598,0.69892,109970.0,109960.0,0.04152]
[1756996028212,0.69792,109970.0,109960.0,0.04152]
[1756996028911,0.69892,109970.0,109960.0,0.04152]
[1756996030810,0.33812,109970.0,109960.0,0.04152]
[1756996031008,0.69892,109970.0,109960.0,0.04152]
[1756996031211,0.33812,109970.0,109960.0,0.04152]
[1756996034816,1.11820008,109970.0,109960.0,0.04152]
[1756996035514,0.69892,109970.0,109960.0,0.04152]
[1756996036710,1.11820008,109970.0,109950.0,0.08797479]
[1756996036917,0.81793008,109960.0,109950.0,0.07235479]
[1756996037117,1.11793008,109960.0,109950.0,0.07225479]
[1756996037517,1.03647981,109960.0,109950.0,0.07225479]
[1756996038223,1.03647981,109960.0,109950.0,0.07325479]
[1756996038425,1.02613981,109960.0,109950.0,0.11552479]
[1756996038934,1.02613981,109960.0,109950.0,0.07325479]
[1756996039520,1.02613981,109960.0,109950.0,0.07425479]
[1756996040340,1.02613981,109960.0,109950.0,0.07325479]
[1756996040532,1.02613981,109960.0,109950.0,0.07425479]
[1756996041043,1.27613981,109960.0,109950.0,0.07425479]
[1756996042230,2.15633981,109960.0,109950.0,0.07425479]
[1756996042441,2.49416962,109960.0,109940.0,0.0001]
[1756996042641,0.02751,109930.0,109920.0,0.15407379]
[1756996042836,0.71533981,109930.0,109920.0,0.15407379]
[1756996043138,0.71533981,109930.0,109920.0,0.04227]
[1756996043345,0.37751,109930.0,109920.0,0.04227]
[1756996044230,0.71533981,109930.0,109920.0,0.04227]
[1756996044429,0.71633981,109930.0,109920.0,0.11562492]
[1756996044837,0.74931958,109930.0,109920.0,0.08943492]
[1756996045036,0.75926958,109930.0,109920.0,0.07335492]
[1756996045242,1.47006958,109930.0,109910.0,0.01608]
[1756996045444,1.94416962,109920.0,109900.0,0.37688]
[1756996045739,0.36533981,109910.0,109900.0,0.40307]
[1756996045942,0.70533981,109910.0,109900.0,0.40307]
[1756996046137,0.36751,109910.0,109900.0,0.40307]
[1756996046334,0.70533981,109910.0,109900.0,0.40307]
[1756996046538,0.36751,109910.0,109900.0,0.40307]
[1756996047342,0.36751,109910.0,109900.0,0.74089981]
[1756996047542,0.36751,109910.0,109900.0,0.40307]
[1756996047743,0.36751,109910.0,109900.0,0.40407]
[1756996048038,0.24743,109910.0,109900.0,0.40507]
[1756996048438,0.24743,109910.0,109900.0,0.81528573]
[1756996048740,0.24743,109910.0,109900.0,1.06528573]
[1756996048941,0.24743,109910.0,109900.0,2.5464334]
[1756996049138,0.41542643,109930.0,109900.0,2.5464334]
[1756996049440,0.40462643,109930.0,109920.0,0.38009981]
[1756996049739,0.40452643,109930.0,109920.0,0.74089981]
[1756996050138,0.40452643,109930.0,109920.0,0.40307]
[1756996050442,0.40452643,109930.0,109920.0,0.74089981]
[1756996051143,0.34188643,109930.0,109920.0,0.74089981]
[1756996051349,0.34188643,109930.0,109920.0,1.87105981]
[1756996051643,0.34188643,109930.0,109920.0,1.53323]
[1756996051843,0.34188643,109930.0,109920.0,1.95266067]
[1756996052538,0.34188643,109930.0,109920.0,0.65307]
[1756996052739,0.34188643,109930.0,109920.0,1.53319]
[1756996053248,0.34188643,109930.0,109920.0,1.53419]
[1756996054043,0.0538359,109930.0,109920.0,2.13554318]
[1756996054239,0.0538359,109930.0,109920.0,2.73554318]
[1756996054442,0.3228359,109930.0,109920.0,1.76447178]
[1756996054639,0.0328359,109930.0,109920.0,2.64451178]
[1756996054838,0.27,109930.0,109920.0,2.64451178]
[1756996056747,0.27,109930.0,109920.0,1.76447178]
[1756996056947,0.27,109930.0,109920.0,0.49504111]
[1756996057146,0.27,109930.0,109920.0,1.37500111]
[1756996058349,0.27,109930.0,109920.0,1.28403]
[1756996058549,0.30201251,109930.0,109920.0,1.28403]
[1756996058740,0.30301251,109930.0,109920.0,1.28403]
[1756996059048,0.30301251,109930.0,109920.0,1.79443178]
[1756996059245,0.30301251,109930.0,109920.0,1.79343178]
[1756996060146,0.30301251,109930.0,109920.0,2.53538328]
[1756996060345,0.29301251,109930.0,109920.0,2.53538328]
[1756996060543,0.03201251,109930.0,109920.0,2.53538328]
[1756996060744,0.29,109930.0,109920.0,2.53538328]
[1756996061042,0.0001,109940.0,109920.0,2.53538328]
[1756996061043,0.0001,109940.0,109930.0,0.0418]
[1756996061346,0.35,109940.0,109930.0,0.82203067]
[1756996061542,0.3830553,109940.0,109930.0,0.91299351]
[1756996061940,0.3830553,109940.0,109930.0,0.49356284]
[1756996062147,0.3830553,109940.0,109930.0,1.37332284]
[1756996062340,0.3840553,109940.0,109930.0,1.37332284]
[1756996063444,0.3840553,109940.0,109930.0,0.91578309]
[1756996063643,0.3840553,109940.0,109930.0,0.55498309]
[1756996063845,0.3840553,109940.0,109930.0,1.01244284]
[1756996064040,0.3840553,109940.0,109930.0,1.43466309]
[1756996064245,0.3840553,109940.0,109930.0,1.79546309]
[1756996065845,0.3830553,109940.0,109930.0,1.79546309]
[1756996066045,0.3830553,109940.0,109930.0,1.79646309]
[1756996067345,0.3830553,109940.0,109930.0,2.33646309]
[1756996067951,0.3830553,109940.0,109930.0,1.96646309]
[1756996068551,0.3830553,109940.0,109930.0,1.96626309]
[1756996068753,0.3830553,109940.0,109930.0,1.79626309]
[1756996068951,1.05527555,109940.0,109930.0,0.4036]
[1756996069148,1.41607555,109940.0,109930.0,0.0428]
[1756996069653,1.41607555,109940.0,109930.0,0.0418]
[1756996070053,0.9938553,109940.0,109930.0,0.0418]
[1756996070547,0.9948553,109940.0,109930.0,0.0418]
[1756996070954,0.9958553,109940.0,109930.0,0.0418]
[1756996071646,0.9968553,109940.0,109930.0,0.0418]
[1756996072152,0.9958553,109940.0,109930.0,0.0418]
[1756996073150,0.9968553,109940.0,109930.0,0.0418]
[1756996073451,0.6360553,109940.0,109930.0,0.0418]
[1756996075052,0.3850553,109940.0,109930.0,0.91578309]
[1756996075241,0.3840553,109940.0,109930.0,0.91578309]
[1756996075446,0.3840553,109940.0,109930.0,1.7106496]
[1756996075951,0.3840553,109940.0,109930.0,1.37284284]
[1756996076156,0.3840553,109940.0,109930.0,0.4705696]
[1756996076357,0.3840553,109940.0,109930.0,1.3498096]
[1756996076358,0.72186206,109940.0,109930.0,1.3498096]
[1756996077560,0.72186206,109940.0,109930.0,1.46385257]
[1756996077960,0.72186206,109940.0,109930.0,1.12604581]
[1756996078161,0.72186206,109940.0,109930.0,1.46385257]
[1756996079562,0.3840553,109940.0,109930.0,1.46385257]
[1756996079759,0.72186206,109940.0,109930.0,1.46385257]
[1756996080459,0.72186206,109940.0,109930.0,1.82465257]
[1756996080658,0.72186206,109940.0,109930.0,1.46385257]
[1756996080860,0.72186206,109940.0,109930.0,1.3498096]
[1756996081167,0.72186206,109940.0,109930.0,1.25864676]
[1756996081962,0.72186206,109940.0,109930.0,1.25860676]
[1756996083066,0.72186206,109940.0,109930.0,0.9208]
[1756996083266,0.72186206,109940.0,109930.0,1.25860676]
[1756996086271,0.72186206,109940.0,109930.0,1.25836676]
[1756996087469,0.97186206,109940.0,109930.0,0.0418]
[1756996087668,0.97186206,109940.0,109930.0,0.37960676]
[1756996087859,1.30966882,109940.0,109930.0,0.0418]
[1756996088165,1.69133978,109940.0,109930.0,0.01516]
[1756996088670,1.69133978,109940.0,109930.0,0.0418]
[1756996088966,1.67046882,109940.0,109930.0,0.01516]
[1756996089167,2.54910882,109940.0,109920.0,1.34666973]
[1756996089366,0.33780676,109930.0,109920.0,1.34666973]
[1756996089667,0.67780676,109930.0,109920.0,1.34656973]
[1756996090368,0.67780676,109930.0,109920.0,1.37226973]
[1756996091868,0.341,109930.0,109920.0,1.37326973]
[1756996092065,0.67880676,109930.0,109920.0,1.37326973]
[1756996092569,0.67880676,109930.0,109920.0,1.37226973]
[1756996092765,0.62240676,109930.0,109920.0,1.37226973]
[1756996093270,0.2846,109930.0,109920.0,1.03446297]
[1756996093565,0.2846,109930.0,109920.0,1.71007649]
[1756996093768,0.2846,109930.0,109920.0,2.07087649]
[1756996094858,0.2846,109930.0,109920.0,2.74965436]
[1756996095157,0.2846,109930.0,109920.0,2.9818476]
[1756996095367,0.2846,109930.0,109920.0,2.86780463]
[1756996095769,0.19912,109930.0,109920.0,2.86780463]
[1756996096175,0.19912,109930.0,109920.0,2.86880463]
[1756996097461,0.001,109930.0,109920.0,2.86880463]
[1756996097859,0.251,109930.0,109920.0,2.86880463]
[1756996098065,0.001,109930.0,109920.0,2.95975603]
[1756996098273,0.0331553,109940.0,109920.0,3.29756279]
[1756996098473,0.0331553,109940.0,109930.0,1.05256352]
[1756996098474,0.3331553,109940.0,109930.0,1.05256352]
[1756996098675,0.3330553,109940.0,109930.0,1.05256352]
[1756996098870,0.3330553,109940.0,109930.0,1.12076352]
[1756996099077,0.3330553,109940.0,109930.0,1.21173049]
[1756996100069,0.3330553,109940.0,109930.0,1.77173049]
[1756996100971,0.3330553,109940.0,109930.0,1.77273049]
[1756996101370,0.3330553,109940.0,109930.0,2.65069049]
[1756996101975,0.3340553,109940.0,109930.0,2.58149049]
[1756996102276,0.3340553,109940.0,109930.0,1.70353049]
[1756996102475,0.3330553,109940.0,109930.0,1.88368373]
[1756996102676,0.3330553,109940.0,109930.0,1.88460373]
[1756996103072,0.3330553,109940.0,109930.0,2.20460373]
[1756996103277,0.3330553,109940.0,109930.0,2.54241049]
[1756996103779,0.3330553,109940.0,109930.0,2.63335369]
[1756996104477,0.3340553,109940.0,109930.0,2.63335369]
[1756996104863,0.3340553,109940.0,109930.0,2.63235369]
[1756996105071,0.0001,109950.0,109940.0,0.0909349]
[1756996105377,0.14,109950.0,109940.0,1.91700518]
[1756996105579,0.14,109950.0,109940.0,1.67016126]
[1756996106368,0.14,109950.0,109940.0,2.00796802]
[1756996106564,0.13178,109950.0,109940.0,2.00796802]
[1756996106774,0.13178,109950.0,109940.0,2.00896802]
[1756996107078,0.13178,109950.0,109940.0,2.12528766]
[1756996107979,0.3,109950.0,109940.0,2.12528766]
[1756996108482,0.06,109950.0,109940.0,1.7874809]
[1756996108682,0.06,109950.0,109940.0,2.12528766]
[1756996109570,0.04156,109950.0,109940.0,2.68528766]
[1756996109772,0.02122337,109960.0,109950.0,0.1327766]
[1756996110079,0.0001,109970.0,109960.0,0.0909184]
[1756996110381,0.26,109970.0,109960.0,2.02698868]
[1756996110577,0.05,109970.0,109960.0,2.33698868]
[1756996110780,0.05,109970.0,109960.0,2.4279267]
[1756996111083,0.05,109970.0,109960.0,2.49903683]
[1756996111380,0.052,109970.0,109960.0,2.74903683]
[1756996111775,0.02751958,109980.0,109960.0,2.83995043]
[1756996111981,0.25751958,109980.0,109970.0,1.92976352]
[1756996112181,0.25741958,109980.0,109970.0,2.42976352]
[1756996112382,0.25741958,109980.0,109970.0,2.52067362]
[1756996112580,0.25741958,109980.0,109970.0,2.61161164]
[1756996113275,0.0001,109990.0,109970.0,3.19161164]
[1756996113474,0.2301,109990.0,109980.0,1.50697208]
[1756996113684,0.0001,110000.0,109990.0,0.01615]
[1756996113887,0.0001,110010.0,109990.0,2.04619672]
[1756996114185,0.3201,110010.0,110000.0,1.07826352]
[1756996114385,0.32,110010.0,110000.0,1.07826352]
[1756996114686,0.3470592,110010.0,110000.0,1.16916847]
[1756996114880,0.3470592,110010.0,110000.0,2.04612847]
[1756996115480,0.3470592,110010.0,110000.0,2.04604847]
[1756996115681,0.3490592,110010.0,110000.0,2.04604847]
[1756996116085,0.3500592,110010.0,110000.0,2.04604847]
[1756996116583,0.3500592,110010.0,110000.0,1.16916847]
[1756996116779,0.2254992,110010.0,110000.0,2.04596847]
[1756996117283,0.2254992,110010.0,110000.0,2.04588847]
[1756996117678,0.2254992,110010.0,110000.0,1.16916847]
[1756996117880,0.2254992,110010.0,110000.0,2.04580847]
[1756996118276,0.2254992,110010.0,110000.0,2.04576847]
[1756996118480,0.2254992,110010.0,110000.0,1.37015495]
[1756996118684,0.2254992,110010.0,110000.0,1.16916847]
[1756996118883,0.2254992,110010.0,110000.0,2.04568847]
[1756996119688,0.2254992,110010.0,110000.0,1.16916847]
[1756996119883,0.3500592,110010.0,110000.0,2.04564847]
[1756996121178,0.3500592,110010.0,110000.0,2.04556847]
[1756996121583,0.93786596,110010.0,110000.0,0.83136171]
[1756996121784,0.96266596,110010.0,110000.0,1.61673676]
[1756996122089,0.6248592,110010.0,110000.0,1.61673676]
[1756996122787,0.6248592,110010.0,110000.0,1.95454352]
[1756996122983,0.6248592,110010.0,110000.0,1.61673676]
[1756996123190,0.6248592,110010.0,110000.0,1.61669676]
[1756996123487,0.6248592,110010.0,110000.0,1.61627308]
[1756996125482,0.6248592,110010.0,110000.0,1.27889]
[1756996125684,0.6248592,110010.0,110000.0,1.61627308]
[1756996127195,1.32304228,110010.0,110000.0,0.04185]
[1756996127390,1.33126228,110010.0,109990.0,0.89201]
[1756996127594,1.08136228,110010.0,109990.0,1.25281]
[1756996128001,0.7439792,110010.0,109990.0,1.25281]
[1756996128203,1.33136228,110010.0,109990.0,0.37705]
[1756996128501,0.3856,110000.0,109990.0,0.9177]
[1756996128694,0.7356,110000.0,109990.0,0.9176]
[1756996129096,1.07258308,110000.0,109990.0,0.9176]
[1756996129397,1.33080308,110000.0,109990.0,0.01615]
[1756996129601,1.33080308,110000.0,109980.0,0.01625]
[1756996129801,0.36218308,109990.0,109980.0,0.91762]
[1756996130101,0.36218308,109990.0,109980.0,0.91748]
[1756996130102,0.3148,109990.0,109980.0,0.91748]
[1756996130297,0.90218308,109990.0,109980.0,0.02577]
[1756996130499,0.91034308,109990.0,109970.0,1.25257]
[1756996130798,1.02124308,109990.0,109970.0,0.37705]
[1756996130994,0.33738308,109980.0,109970.0,0.04202]
[1756996131190,0.67218308,109980.0,109970.0,0.04192]
[1756996131398,0.67218308,109980.0,109970.0,0.91736]
[1756996131597,0.3348,109980.0,109970.0,0.91736]
[1756996132102,0.0248,109980.0,109970.0,0.91736]
[1756996132303,0.1948,109980.0,109970.0,0.91736]
[1756996132498,0.1948,109980.0,109970.0,1.25474308]
[1756996132703,0.1948,109980.0,109970.0,1.61554308]
[1756996133098,0.1958,109980.0,109970.0,1.61554308]
[1756996133299,0.1958,109980.0,109970.0,1.27816]
[1756996133806,0.1948,109980.0,109970.0,1.27816]
[1756996134199,0.1968,109980.0,109970.0,1.27816]
[1756996135206,0.1968,109980.0,109970.0,1.61554308]
[1756996135506,0.1968,109980.0,109970.0,1.61534308]
[1756996135905,0.1978,109980.0,109970.0,1.61534308]
[1756996136203,0.171,109980.0,109970.0,1.61534308]
[1756996136404,0.172,109980.0,109970.0,1.61534308]
[1756996136610,0.171,109980.0,109970.0,1.61534308]
[1756996136999,0.171,109980.0,109970.0,1.95627283]
[1756996137900,0.17,109980.0,109970.0,1.95627283]
[1756996138206,0.17,109980.0,109970.0,1.95611283]
[1756996139007,0.17,109980.0,109970.0,1.95711283]
[1756996139209,0.17,109980.0,109970.0,1.70711283]
[1756996139602,0.17,109980.0,109970.0,1.70611283]
[1756996139804,0.1948,109980.0,109970.0,1.70603283]
[1756996140204,0.1958,109980.0,109970.0,1.70603283]
[1756996140705,0.1958,109980.0,109970.0,1.70587283]
[1756996142010,0.53318308,109980.0,109970.0,1.27744]
[1756996142203,0.1958,109980.0,109970.0,1.27744]
[1756996142704,0.1958,109980.0,109970.0,1.61482308]
[1756996143109,0.1958,109980.0,109970.0,0.74010308]
[1756996143309,0.1958,109980.0,109970.0,1.61482308]
[1756996144108,0.171,109980.0,109970.0,1.61482308]
[1756996144508,0.001,109980.0,109970.0,2.88313591]
[1756996144704,0.001,109980.0,109970.0,2.54575283]
[1756996145012,0.001,109980.0,109970.0,2.63666243]
[1756996145311,0.001,109980.0,109970.0,2.97404551]
[1756996145610,0.001,109980.0,109970.0,3.04922055]
[1756996145909,0.001,109980.0,109970.0,3.00922055]
[1756996146105,0.001,109980.0,109970.0,2.71922055]
[1756996146311,0.0001,109990.0,109980.0,0.04169]
[1756996146512,0.26,109990.0,109980.0,0.8214312]
[1756996146907,0.26,109990.0,109980.0,0.91235268]
[1756996147208,0.2848,109990.0,109980.0,0.91235268]
[1756996147405,0.5348,109990.0,109980.0,0.40249]
[1756996147612,0.5348,109990.0,109980.0,1.27677]
[1756996147805,0.5348,109990.0,109980.0,0.40249]
[1756996148011,0.5348,109990.0,109980.0,1.27673]
[1756996148811,0.5348,109990.0,109980.0,1.27773]
[1756996149206,0.5348,109990.0,109980.0,1.27673]
[1756996149411,0.5358,109990.0,109980.0,1.27673]
[1756996150213,0.5348,109990.0,109980.0,1.27673]
[1756996150412,0.5358,109990.0,109980.0,1.27673]
[1756996150809,0.5368,109990.0,109980.0,1.27673]
[1756996151614,0.5358,109990.0,109980.0,1.27673]
[1756996151807,0.5368,109990.0,109980.0,1.27673]
[1756996152314,0.5358,109990.0,109980.0,1.27673]
[1756996152515,0.5368,109990.0,109980.0,1.27673]
[1756996156317,0.5368,109990.0,109980.0,0.04169]
[1756996156519,0.2868,109990.0,109980.0,0.91517]
[1756996156911,0.9639012,109990.0,109970.0,0.37705]
[1756996157111,0.7140012,109990.0,109970.0,1.25049]
[1756996158115,0.7130012,109990.0,109970.0,1.25049]
[1756996158512,0.7130012,109990.0,109980.0,0.02606]
[1756996158711,0.7129012,109990.0,109980.0,0.02606]
[1756996159218,0.2848,109990.0,109980.0,0.0412]
[1756996160214,0.2848,109990.0,109980.0,0.402]
[1756996160413,0.2858,109990.0,109980.0,0.0412]
[1756996160612,0.2858,109990.0,109980.0,0.402]
[1756996160814,0.2868,109990.0,109980.0,0.402]
[1756996162615,0.262,109990.0,109980.0,0.652]
[1756996163416,0.28826,109990.0,109980.0,0.652]
[1756996163615,0.28726,109990.0,109980.0,0.652]
[1756996163821,0.28626,109990.0,109980.0,1.525]
[1756996164020,0.28626,109990.0,109980.0,1.526]
[1756996164517,0.26,109990.0,109980.0,1.276]
[1756996164717,0.0216165,110000.0,109980.0,2.12676398]
[1756996165018,0.1778765,110000.0,109990.0,0.402]
[1756996165226,0.3677765,110000.0,109990.0,0.402]
[1756996165426,0.35,110000.0,109990.0,0.402]
[1756996165717,0.37626,110000.0,109990.0,0.49292148]
[1756996165924,0.37626,110000.0,109990.0,0.402]
[1756996167122,0.37626,110000.0,109990.0,1.27472]
[1756996167123,0.37726,110000.0,109990.0,1.27472]
[1756996167323,0.37726,110000.0,109990.0,1.2746]
[1756996167524,0.37826,110000.0,109990.0,1.2746]
[1756996168422,0.37826,110000.0,109990.0,0.402]
[1756996168623,0.37826,110000.0,109990.0,1.2746]
[1756996168916,0.71572045,110000.0,109990.0,1.27914]
[1756996169116,0.71572045,110000.0,109990.0,1.27902]
[1756996169420,0.71572045,110000.0,109990.0,0.40654]
[1756996169622,0.71572045,110000.0,109990.0,1.27898]
[1756996169823,0.71572045,110000.0,109990.0,1.2789]
[1756996170324,0.71572045,110000.0,109990.0,0.04574]
[1756996170621,1.07652045,110000.0,109990.0,0.04574]
[1756996170821,1.33430045,110000.0,109990.0,0.0306]
[1756996171223,1.33430045,110000.0,109990.0,0.00454]
[1756996174331,1.33410045,110000.0,109990.0,0.00454]
[1756996175032,0.99664,110000.0,109990.0,0.00454]
[1756996175331,1.33410045,110000.0,109990.0,0.00454]
[1756996176335,2.20610045,110000.0,109990.0,0.00454]
[1756996176930,2.20590045,110000.0,109990.0,0.00454]
[1756996180134,0.00643,109990.0,109980.0,6.001e-05]
[1756996180431,1.06156386,109990.0,109980.0,6.001e-05]
[1756996181331,0.72410341,109990.0,109980.0,6.001e-05]
[1756996181536,1.06156386,109990.0,109980.0,6.001e-05]
[1756996181939,1.06156386,109990.0,109980.0,0.00106001]
[1756996182835,1.06156386,109990.0,109980.0,0.02529001]
[1756996183034,1.06556386,109990.0,109980.0,0.04026001]
[1756996183236,1.06556386,109990.0,109980.0,6.001e-05]
[1756996184541,1.06556386,109990.0,109980.0,0.02429001]
[1756996184742,1.93676386,109990.0,109980.0,0.02429001]
[1756996185135,1.93676386,109990.0,109980.0,0.04026001]